{"text_format":"1","workbook":"xlsx","n_sheets":18,"sheets":["Menu","Contingente Ambiental","Contingente Ambiental BackUp","Contingente Social","Contingente Social BackUp","Contingente Gobernanza","Contingente Gobernanza BackUp","Contingente Resiliencia","Listas","Contingente Resiliencia BackUp","Preguntas Orientadoras Ambienta","Preguntas Orientadoras Social","PreguntasOrientadorasGobernanza","Preguntas Orientadoras Resili.","Nivel de Impacto","Nivel de Impacto BackUp","Identificación Zona Valorable","Zona Valorable BackUp"],"not_rendered":{"charts":0,"images":4,"macros":1,"external_links":0,"defined_names":20,"comments":0,"pivot_tables":0},"unopened":[],"bounds":{"document_bytes":16777216,"sheet_cells":100000,"rows_first":2000,"rows_last":500,"rows_between":2000,"halvings":0,"cell_chars":16384,"cell_head_chars":4096},"cells_cut":0,"cells_raw":0,"read":"whole","date_system":"1900"}

{"sheet":"Menu","index":0,"n_rows":73,"n_cols":7,"rows_kept":73,"cut":false,"hidden":false,"merged":[[29,3,29,11],[9,1,9,17],[16,3,16,11],[22,3,22,11],[24,3,24,11]]}
[]
[]
[]
[]
[]
[]
[]
[]
[]
[null,"INSTRUCCIONES"]
[]
[]
[]
[]
[]
[]
[null,null,"Nombre del proyecto:"]
[]
[]
[]
[]
[]
[null,null,"TIPO DE PROYECTO"]
[]
[null,null,"JUSTIFICACIÓN"]
[]
[]
[]
[]
[null,null,"FASE EN LA QUE SE ENCUENTRA EL PROYECTO"]
[]
[]
[]
[]
[]
[]
[]
[]
[null,null,null,null,"Riesgo","Aplicable","Validación"]
[null,null,null,null,"Ambiental","SI",{"$f":"IF(F40=\"SI\",E40,\"\")","v":"Ambiental"}]
[null,null,null,null,"Cambiario","SI","Cambiario"]
[null,null,null,null,"Cambio Tributario","SI","Cambio Tributario"]
[null,null,null,null,"Comercial","SI","Comercial"]
[null,null,null,null,"Costos Ociosos","SI","Costos Ociosos"]
[null,null,null,null,"Demoras en entrega de Peaje","SI","Demoras en entrega de Peaje"]
[null,null,null,null,"Diseños","SI","Diseños"]
[null,null,null,null,"Dragados","SI","Dragados"]
[null,null,null,null,"Elusión","SI","Elusión"]
[null,null,null,null,"Evento Eximente de Responsabilidad","SI","Evento Eximente de Responsabilidad"]
[null,null,null,null,"Fuerza Mayor Ambiental","SI","Fuerza Mayor Ambiental"]
[null,null,null,null,"Fuerza Mayor Consulta Previa","SI","Fuerza Mayor Consulta Previa"]
[null,null,null,null,"Fuerza Mayor No Asegurable","SI","Fuerza Mayor No Asegurable"]
[null,null,null,null,"Fuerza Mayor Predial","SI","Fuerza Mayor Predial"]
[null,null,null,null,"Fuerza Mayor Redes","SI","Fuerza Mayor Redes"]
[null,null,null,null,"Fuerza Mayor Social","SI","Fuerza Mayor Social"]
[null,null,null,null,"Geológico","SI","Geológico"]
[null,null,null,null,"Gestión Licencia Ambiental","SI","Gestión Licencia Ambiental"]
[null,null,null,null,"Gestión Predios Públicos","SI","Gestión Predios Públicos"]
[null,null,null,null,"Insuficiencia de recursos interventoría","SI","Insuficiencia de recursos interventoría"]
[null,null,null,null,"No Instalación de Peajes","SI","No Instalación de Peajes"]
[null,null,null,null,"No operación de peajes","SI","No operación de peajes"]
[null,null,null,null,"Nuevas Consultas Previas","SI","Nuevas Consultas Previas"]
[null,null,null,null,"Nuevos Puntos Críticos","SI","Nuevos Puntos Críticos"]
[null,null,null,null,"Obras Adicionales","SI","Obras Adicionales"]
[null,null,null,null,"Predial","SI","Predial"]
[null,null,null,null,"Recaudo Electronico","SI","Recaudo Electronico"]
[null,null,null,null,"Redes","SI","Redes"]
[null,null,null,null,"Regulatoria","SI","Regulatoria"]
[null,null,null,null,"Reubicación","SI","Reubicación"]
[null,null,null,null,"Social","SI","Social"]
[null,null,null,null,"Tarifario","SI","Tarifario"]
[null,null,null,null,"Tributario","SI","Tributario"]
[null,null,null,null,"Variacion en los niveles de agua","SI","Variacion en los niveles de agua"]

{"sheet":"Contingente Ambiental","index":1,"n_rows":6,"n_cols":6,"rows_kept":6,"cut":false,"hidden":false,"merged":[[2,1,5,1],[2,2,5,2]]}
[]
[null,"Pilar","Categoría ASG+R","Subcategoría ASG+R","Causante del Riesgo","Riesgo Contractual"]
[null,"Ambiental","Biodiversidad","Clasificación de Hábitats e identificación de áreas protegidas y medidas correspondientes"]
[null,null,null,"Aplicación de jerarquía de mitigación"]
[null,null,null,"Prevención y manejo de especies exóticas y exóticas invasivas"]
[null,null,null,"Protección de servicios ecosistémicos para la conservación de la biodiversidad"]

{"sheet":"Contingente Ambiental BackUp","index":2,"n_rows":6,"n_cols":6,"rows_kept":6,"cut":false,"hidden":true,"merged":[[2,2,5,2],[2,1,5,1]]}
[]
[null,"Pilar","Categoría ASG+R","Subcategoría ASG+R","Causante del Riesgo","Riesgo Contractual"]
[null,"Ambiental","Biodiversidad","Clasificación de Hábitats e identificación de áreas protegidas y medidas correspondientes"]
[null,null,null,"Aplicación de jerarquía de mitigación"]
[null,null,null,"Prevención y manejo de especies exóticas y exóticas invasivas"]
[null,null,null,"Protección de servicios ecosistémicos para la conservación de la biodiversidad"]

{"sheet":"Contingente Social","index":3,"n_rows":16,"n_cols":6,"rows_kept":16,"cut":false,"hidden":false,"merged":[[9,2,10,2],[11,2,15,2],[2,2,5,2],[2,1,15,1],[6,2,8,2]]}
[]
[null,"Pilar","Categoría ASG+R","Subcategoría ASG+R","Causante del Riesgo","Riesgo Contractual"]
[null,"Social","Comunidades étnicas","Impactos sobre tierras y recursos naturales"]
[null,null,null,"Reubicación"]
[null,null,null,"Consulta previa, libre e informada"]
[null,null,null,"Mitigación y beneficios del desarrollo del proyecto"]
[null,null,"Grupos vulnerables","Asequibilidad"]
[null,null,null,"Accesibilidad universal"]
[null,null,null,"Igualdad de oportunidades"]
[null,null,"Patrimonio cultural","Uso del patrimonio cultural por parte del proyecto"]
[null,null,null,"Protección del patrimonio cultural y pa-trimonio cultu-ral crítico en el diseño y eje-cución de los proyectos, y cumplimiento de normas y procedimien-tos nacionales en patrimonio cultural"]
[null,null,"Reasentamiento involuntario","Desplazamiento físico y económico"]
[null,null,null,"Afectación de predios"]
[null,null,null,"Reseña de un Plan de Acción de Reasentamiento"]
[null,null,null,"Reseña del contenido de la Auditoría Final"]
[null,null,null,"Responsabilidades del sector privado en un reasentamiento manejado por el Gobierno"]

{"sheet":"Contingente Social BackUp","index":4,"n_rows":16,"n_cols":6,"rows_kept":16,"cut":false,"hidden":true,"merged":[[2,1,15,1],[2,2,5,2],[6,2,8,2],[9,2,10,2],[11,2,15,2]]}
[]
[null,"Pilar","Categoría ASG+R","Subcategoría ASG+R","Causante del Riesgo","Riesgo Contractual"]
[null,"Social","Comunidades étnicas","Impactos sobre tierras y recursos naturales"]
[null,null,null,"Reubicación"]
[null,null,null,"Consulta previa, libre e informada"]
[null,null,null,"Mitigación y beneficios del desarrollo del proyecto"]
[null,null,"Grupos vulnerables","Asequibilidad"]
[null,null,null,"Accesibilidad universal"]
[null,null,null,"Igualdad de oportunidades"]
[null,null,"Patrimonio cultural","Uso del patrimonio cultural por parte del proyecto"]
[null,null,null,"Protección del patrimonio cultural y pa-trimonio cultu-ral crítico en el diseño y eje-cución de los proyectos, y cumplimiento de normas y procedimien-tos nacionales en patrimonio cultural"]
[null,null,"Reasentamiento involuntario","Desplazamiento físico y económico"]
[null,null,null,"Afectación de predios"]
[null,null,null,"Reseña de un Plan de Acción de Reasentamiento"]
[null,null,null,"Reseña del contenido de la Auditoría Final"]
[null,null,null,"Responsabilidades del sector privado en un reasentamiento manejado por el Gobierno"]

{"sheet":"Contingente Gobernanza","index":5,"n_rows":5,"n_cols":6,"rows_kept":5,"cut":false,"hidden":false,"merged":[[2,1,4,1],[3,2,4,2]]}
[]
[null,"Pilar","Categoría ASG+R","Subcategoría ASG+R","Causante del Riesgo","Riesgo Contractual"]
[null,"Gobernanza","Grupos de interés","Identificación, análisis, consulta y participación de actores"]
[null,null,"Identificación de riesgos e impactos","Matriz de impactos A&S"]
[null,null,null,"Identificación de riesgos e impactos contextuales"]

{"sheet":"Contingente Gobernanza BackUp","index":6,"n_rows":5,"n_cols":6,"rows_kept":5,"cut":false,"hidden":true,"merged":[[3,2,4,2],[2,1,4,1]]}
[]
[null,"Pilar","Categoría ASG+R","Subcategoría ASG+R","Causante del Riesgo","Riesgo Contractual"]
[null,"Gobernanza","Grupos de interés","Identificación, análisis, consulta y participación de actores"]
[null,null,"Identificación de riesgos e impactos","Matriz de impactos A&S"]
[null,null,null,"Identificación de riesgos e impactos contextuales"]

{"sheet":"Contingente Resiliencia","index":7,"n_rows":5,"n_cols":6,"rows_kept":5,"cut":false,"hidden":false,"merged":[[2,1,4,1],[2,2,4,2]]}
[]
[null,"Pilar","Categoría ASG+R","Subcategoría ASG+R","Causante de riesgo","Riesgo Contractual"]
[null,"Resiliencia","Gestión de riesgo de desastre y cambio climático","Análisis de riesgo multiamenaza"]
[null,null,null,"Plan de gestión del riesgo de desastres"]
[null,null,null,"Preparación y respuesta a emergencias"]

{"sheet":"Listas","index":8,"n_rows":5,"n_cols":5,"rows_kept":5,"cut":false,"hidden":true,"merged":[]}
[]
[1,1,1,"A","SI"]
[0,2,4,"B","NO"]
["N/A",3,null,"C"]
[null,4]

{"sheet":"Contingente Resiliencia BackUp","index":9,"n_rows":5,"n_cols":6,"rows_kept":5,"cut":false,"hidden":true,"merged":[[2,1,4,1],[2,2,4,2]]}
[]
[null,"Pilar","Categoría ASG+R","Subcategoría ASG+R","Causante de riesgo","Riesgo Contractual"]
[null,"Resiliencia","Gestión de riesgo de desastre y cambio climático","Análisis de riesgo multiamenaza"]
[null,null,null,"Plan de gestión del riesgo de desastres"]
[null,null,null,"Preparación y respuesta a emergencias"]

{"sheet":"Preguntas Orientadoras Ambienta","index":10,"n_rows":23,"n_cols":9,"rows_kept":23,"cut":false,"hidden":false,"merged":[[2,1,2,8],[1,1,1,8],[13,1,13,8],[3,1,4,1],[3,2,4,2],[3,3,4,3],[3,4,3,7],[22,2,22,8],[21,2,21,8],[20,2,20,8],[12,2,12,8],[3,8,4,8]]}
[]
[null,"Categoría: Biodiversidad"]
[null,"Subcategoría:  Clasificación de hábitats e identificación de áreas protegidas y medidas correspondientes"]
[null,"Pregunta Orientadora","Calificación (1=Sí, 0=No)","Peso base","Etapa en la que la pregunta se considera aplicable ",null,null,null,"Observaciones"]
[null,null,null,null,"E","PC","C","O&M"]
[null,"¿Se contó con tiempo en temporada de invierno y verano para el levantamiento de información base?",null,15]
[null,"¿Los estudios de línea base fueron elaborados teniendo en cuenta metodologías de recolección de información que sea estadísticamente significativa y coherente con el área en donde se desarrolla el proyecto?",null,20]
[null,"¿Los trámites para consecución de licencias y/o permisos ambientales con las autoridades ambientales competentes se iniciaron oportunamente (dependiendo de la magnitud del Proyecto y el tiempo requerido por las autoridades ambientales para otorgar las licencias o permisos) para ser obtenidos en la fase en la que se requieren?",null,15]
[null,"¿Se cuenta con las licencias y/o permisos ambientales requeridos otorgados por las autoridades ambientales competentes?",null,15]
[null,"¿Se hizo un estudio del AI del proyecto para identificar presencia de áreas en el SINAP, sitios de patrimonio Mundial de la UNESCO, reservas del Programa sobre el Hombre y la Biosfera de la UNESCO, zonas de importancia vital para la biodiversidad y humedales de importancia internacional (RAMSAR)? ",null,15]
[null,"¿Se realizó búsqueda y revisión de información secundaria, principalmente de otros proyectos que se ubiquen en el AI?",null,10]
[null,"¿Se ha comparado y diferenciado el manejo internacional, nacional y regional frente a especies con algún grado de amenazada y/o vulnerabilidad?",null,10]
[null,"Puntaje subcategoría 1",{"$f":"((IF(C6=\"N/A\",0,C6)*D6)+(IF(C7=\"N/A\",0,C7)*D7)+(IF(C8=\"N/A\",0,C8)*D8)+(IF(C9=\"N/A\",0,C9)*D9)+(IF(C10=\"N/A\",0,C10)*D10)+(IF(C11=\"N/A\",0,C11)*D11)+(IF(C12=\"N/A\",0,C12)*D12))/(IF(OR(C6=\"N/A\",C6=\"\"),0,D6)+IF(OR(C7=\"N/A\",C7=\"\"),0,D7)+IF(OR(C8=\"N/A\",C8=\"\"),0,D8)+IF(OR(C9=\"N/A\",C9=\"\"),0,D9)+IF(OR(C10=\"N/A\",C10=\"\"),0,D10)+IF(OR(C11=\"N/A\",C11=\"\"),0,D11)+IF(OR(C12=\"N/A\",C12=\"\"),0,D12))","v":{"$error":"#DIV/0!"}}]
[null,"Subcategoría 2:  Aplicación de jerarquía de mitigación"]
[null,"¿El monto de la subcuenta ambiental consideró la posibilidad de encontrar especies vulnerables/sensibles que requieran un manejo especial considerando la sensibilidad de la zona?",null,20]
[null,"¿Los estudios de línea base fueron elaborados con base en metodologías de recolección de información que sea estadísticamente significativa y coherente con el área en donde se desarrolla el proyecto?",null,15]
[null,"¿Se consideraron varias cotizaciones con análisis de precios unitarios locales y regionales para temas relacionados con las compensaciones ambientales?",null,20]
[null,"¿Se cuenta con el personal interdisciplinario para la ejecución, monitoreo y evaluación de las medidas de gestión del medio biótico?",null,15]
[null,"¿Se ha tenido en cuenta la equivalencia ecosistémica de las áreas aprovechadas y a compensar para que el proyecto no genere pérdida neta de biodiversidad?",null,15]
[null,"¿Se hizo una evaluación de los factores de compensación para el AI siguiendo estrictamente el manual de compensaciones del componente biótico según el modo de compensación elegido por el privado?",null,15]
[null,"Puntaje subcategoría 2",{"$f":"((IF(C15=\"N/A\",0,C15)*D15)+(IF(C16=\"N/A\",0,C16)*D16)+(IF(C17=\"N/A\",0,C17)*D17)+(IF(C18=\"N/A\",0,C18)*D18)+(IF(C19=\"N/A\",0,C19)*D19)+(IF(C20=\"N/A\",0,C20)*D20))/(IF(OR(C15=\"N/A\",C15=\"\"),0,D15)+IF(OR(C16=\"N/A\",C16=\"\"),0,D16)+IF(OR(C17=\"N/A\",C17=\"\"),0,D17)+IF(OR(C18=\"N/A\",C18=\"\"),0,D18)+IF(OR(C19=\"N/A\",C19=\"\"),0,D19)+IF(OR(C20=\"N/A\",C20=\"\"),0,D20))","v":{"$error":"#DIV/0!"}}]
[null,"Puntaje de probabilidad Categoría",{"$f":"IFERROR((IFERROR(C13,0)+IFERROR(C21,0))/(IF(COUNTIF(C6:C12,\"N/A\")+COUNTIF(C6:C12,\"\")=7,0,1)+IF(COUNTIF(C15:C20,\"N/A\")+COUNTIF(C15:C20,\"\")=6,0,1)),0)","v":0}]
[null,"Probabilidad Categoría",{"$f":"_xlfn.IFS(AND(1>=C22,C22>0.75),\"BAJO\",AND(0.75>=C22,C22>0.5),\"MEDIO-BAJO\",AND(0.5>=C22,C22>0.25),\"MEDIO-ALTO\",AND(0.25>=C22,C22>=0),\"ALTO\")","v":"ALTO"}]

{"sheet":"Preguntas Orientadoras Social","index":11,"n_rows":114,"n_cols":9,"rows_kept":114,"cut":false,"hidden":false,"merged":[[16,1,16,8],[22,2,22,8],[23,1,23,8],[31,2,31,8],[15,2,15,8],[1,1,1,8],[2,1,2,8],[3,8,4,8],[3,4,3,7],[3,3,4,3],[3,2,4,2],[3,1,4,1],[32,1,32,8],[36,2,36,8],[37,2,37,8],[42,8,43,8],[40,1,40,8],[41,1,41,8],[42,4,42,7],[42,2,43,2],[42,1,43,1],[42,3,43,3],[56,1,56,8],[55,2,55,8],[61,2,61,8],[62,2,62,8],[67,8,68,8],[66,1,66,8],[65,1,65,8],[67,4,67,7],[67,3,68,3],[67,2,68,2],[67,1,68,1],[113,2,113,8],[38,2,38,8],[63,2,63,8],[79,2,79,8],[102,1,102,8],[111,2,111,8],[112,2,112,8],[78,2,78,8],[83,8,84,8],[81,1,81,8],[82,1,82,8],[101,2,101,8],[83,4,83,7],[83,3,84,3],[83,2,84,2],[83,1,84,1]]}
[]
[null,"Categoría: Comunidades étnicas"]
[null,"Subcategoría 1: Consulta previa, libre e informada"]
[null,"Pregunta Orientadora","Calificación (1=Sí, 0=No)","Peso base","Etapa en la que la pregunta se considera aplicable ",null,null,null,"Observaciones"]
[null,null,null,null,"E","PC","C","O&M"]
[null,"¿Se cuenta con los certificados vigentes expedidos por Ministerio del Interior sobre procedencia de Consulta Previa en el AI?",null,20]
[null,"¿se verificó la procedencia de realizar nuevas consultas previas ante el Ministerio del Interior?",null,5]
[null,"¿El proceso de consulta previa, libre e informada, así como su protocolización inició su ejecución en un periodo no mayor a cinco (5) años antes del cierre de factibilidad del proyecto?",null,5]
[null,"¿Se cuenta con certificados vigentes de existencia o presencia étnica en el territorio otorgados por entidades locales o municipales?",null,10]
[null,"¿Se cuenta con documentación que georreferencie las zonas de territorios colectivos ubicados en el AI?",null,10]
[null,"¿La Protocolización de Acuerdos se dio de común acuerdo con todas las partes interesadas y no por Test de Proporcionalidad?",null,20]
[null,"¿La realización de la ruta metodológica contó con la participación y respaldo de toda la comunidad afectada?",null,10]
[null,"¿Cumple con la siguiente afirmación? El proyecto no cuenta con nuevas reclamaciones de Consulta Previa por parte de comunidades no certificadas por el Ministerio del Interior.",null,5]
[null,"¿Las comunidades no incluidas dentro del proceso de Consulta Previa han recibido más de 1 notificación de no procedencia por parte del Ministerio del Interior ante la misma solicitud?",null,5]
[null,"Durante la ruta metodológica, ¿se validó información referente a los estudios técnicos del trazado del proyecto junto con la caracterización poblacional y ubicación de la comunidad?",null,10]
[null,"Puntaje subcategoría 1",{"$f":"((IF(C6=\"N/A\",0,C6)*D6)+(IF(C7=\"N/A\",0,C7)*D7)+(IF(C8=\"N/A\",0,C8)*D8)+(IF(C9=\"N/A\",0,C9)*D9)+(IF(C10=\"N/A\",0,C10)*D10)+(IF(C11=\"N/A\",0,C11)*D11)+(IF(C12=\"N/A\",0,C12)*D12)+(IF(C13=\"N/A\",0,C13)*D13)+(IF(C14=\"N/A\",0,C14)*D14)+(IF(C15=\"N/A\",0,C15)*D15))/(IF(OR(C6=\"N/A\",C6=\"\"),0,D6)+IF(OR(C7=\"N/A\",C7=\"\"),0,D7)+IF(OR(C8=\"N/A\",C8=\"\"),0,D8)+IF(OR(C9=\"N/A\",C9=\"\"),0,D9)+IF(OR(C10=\"N/A\",C10=\"\"),0,D10)+IF(OR(C11=\"N/A\",C11=\"\"),0,D11)+IF(OR(C12=\"N/A\",C12=\"\"),0,D12)+IF(OR(C13=\"N/A\",C13=\"\"),0,D13)+IF(OR(C14=\"N/A\",C14=\"\"),0,D14)+IF(OR(C15=\"N/A\",C15=\"\"),0,D15))","v":{"$error":"#DIV/0!"}}]
[null,"Subcategoría 2: Reubicación"]
[null,"Dentro de la ruta metodológica, ¿se incluyó la identificación y manejo a los impactos indicados por las comunidades, referentes al proyecto y a su eventual reubicación?",null,20]
[null,"¿Existieron alternativas desde la elaboración de los diseños geométricos del proyecto que redujeron o evitaron la reubicación de las comunidades?",null,20]
[null,"¿Las alternativas a los diseños geométricos fueron socializadas y concertadas, en la medida de lo posible, con las comunidades étnicas impactadas?",null,20]
[null,"¿Dentro del Programa de apoyo a la gestión socio predial hay actividades de seguimiento explícitas que garanticen la preservación de los usos y costumbres de las comunidades desplazadas?",null,20]
[null,"El proceso de reubicación contó con la articulación y cumplimiento legal vigente en materia de compensaciones sociales, así como leyes, tratados y normativa especial de protección y salvaguarda étnica.",null,20]
[null,"Puntaje subcategoría 2",{"$f":"((IF(C18=\"N/A\",0,C18)*D18)+(IF(C19=\"N/A\",0,C19)*D19)+(IF(C20=\"N/A\",0,C20)*D20)+(IF(C21=\"N/A\",0,C21)*D21)+(IF(C22=\"N/A\",0,C22)*D22))/(IF(OR(C18=\"N/A\",C18=\"\"),0,D18)+IF(OR(C19=\"N/A\",C19=\"\"),0,D19)+IF(OR(C20=\"N/A\",C20=\"\"),0,D20)+IF(OR(C21=\"N/A\",C21=\"\"),0,D21)+IF(OR(C22=\"N/A\",C22=\"\"),0,D22))","v":{"$error":"#DIV/0!"}}]
[null,"Subcategoría 3: Impactos sobre tierras y recursos naturales"]
[null,"¿En los Estudios de Impacto Ambiental socializados con las comunidades étnicas se atendieron a las observaciones específicas y soportadas sobre impactos a sus usos y costumbres ligados al ecosistema?",null,15]
[null,"Las alternativas de diseño del proyecto, ¿evitan desvíos o afectaciones de causes hídricos al interior de los territorios colectivos?",null,20]
[null,"¿Las compensaciones ambientales contarán con el acompañamiento, monitoreo y socialización de las comunidades étnicas afectadas? ",null,10]
[null,"Dentro de los estudios de línea base social y el estudio de impacto ambiental, ¿se tuvieron en cuenta variables socioeconómicas relacionadas con seguridad alimentaria para las comunidades étnicas afectadas?",null,15]
[null,"Dentro de los estudios de línea base social y el estudio de impacto ambiental, ¿se tuvieron en cuenta variables de cosmogonía, usos y costumbres de las comunidades étnicas afectadas?",null,15]
[null,"Durante la ruta metodológica y los acuerdos protocolizados, ¿quedó explícita la identificación de impactos, manejos y mitigaciones de los riesgos ecosistémicos causados por el proyecto a las comunidades étnicas? ",null,20]
[null,"¿La información socializada a las comunidades étnicas sobre los riesgos e impactos ecosistémicos ha sido permanente, transparente y actualizada durante el desarrollo del proyecto?",null,5]
[null,"Puntaje subcategoría 3",{"$f":"((IF(C25=\"N/A\",0,C25)*D25)+(IF(C26=\"N/A\",0,C26)*D26)+(IF(C27=\"N/A\",0,C27)*D27)+(IF(C28=\"N/A\",0,C28)*D28)+(IF(C29=\"N/A\",0,C29)*D29)+(IF(C30=\"N/A\",0,C30)*D30)+(IF(C31=\"N/A\",0,C31)*D31))/(IF(OR(C25=\"N/A\",C25=\"\"),0,D25)+IF(OR(C26=\"N/A\",C26=\"\"),0,D26)+IF(OR(C27=\"N/A\",C27=\"\"),0,D27)+IF(OR(C28=\"N/A\",C28=\"\"),0,D28)+IF(OR(C29=\"N/A\",C29=\"\"),0,D29)+IF(OR(C30=\"N/A\",C30=\"\"),0,D30)+IF(OR(C31=\"N/A\",C31=\"\"),0,D31))","v":{"$error":"#DIV/0!"}}]
[null,"Subcategoría 4: Mitigación y beneficios del desarrollo"]
[null,"¿El proyecto cuenta con un presupuesto estimado ante la posibilidad de nuevas consultas previas tomando como valor de referencia procesos realizados en el marco del proyecto u otros procesos realizados en el territorio?  ",null,30]
[null,"¿Los programas del Plan de Gestión Social Contractual se encuentran articulados con los Planes de Vida o Etnodesarrollo de las comunidades?",null,40]
[null,"Para las actividades diseñadas en los programas del Plan de Gestión Social, ¿se tiene contemplado el apoyo al diseño y formulación de los Planes de Vida o Etnodesarrollo?",null,30]
[null,"Puntaje subcategoría 4",{"$f":"((IF(C34=\"N/A\",0,C34)*D34)+(IF(C35=\"N/A\",0,C35)*D35)+(IF(C36=\"N/A\",0,C36)*D36))/(IF(OR(C34=\"N/A\",C34=\"\"),0,D34)+IF(OR(C35=\"N/A\",C35=\"\"),0,D35)+IF(OR(C36=\"N/A\",C36=\"\"),0,D36))","v":{"$error":"#DIV/0!"}}]
[null,"Puntaje de probabilidad Categoría",{"$f":"IFERROR((IFERROR(C16,0)+IFERROR(C23,0)+IFERROR(C32,0)+IFERROR(C37,0))/(IF(COUNTIF(C6:C15,\"N/A\")+COUNTIF(C6:C15,\"\")=10,0,1)+IF(COUNTIF(C18:C22,\"N/A\")+COUNTIF(C18:C22,\"\")=5,0,1)+IF(COUNTIF(C25:C31,\"N/A\")+COUNTIF(C25:C31,\"\")=7,0,1)+IF(COUNTIF(C34:C36,\"N/A\")+COUNTIF(C34:C36,\"\")=3,0,1)),0)","v":0}]
[null,"Probabilidad Categoría",{"$f":"_xlfn.IFS(AND(1>=C38,C38>0.75),\"BAJO\",AND(0.75>=C38,C38>0.5),\"MEDIO-BAJO\",AND(0.5>=C38,C38>0.25),\"MEDIO-ALTO\",AND(0.25>=C38,C38>=0),\"ALTO\")","v":"ALTO"}]
[]
[null,"Categoría: Grupos vulnerables"]
[null,"Subcategoría 1: Asequibilidad"]
[null,"Pregunta Orientadora","Calificación (1=Sí, 0=No)","Peso base","Etapa en la que la pregunta se considera aplicable ",null,null,null,"Observaciones"]
[null,null,null,null,"E","PC","C","O&M"]
[null,"¿Se estimó con base en información certera la repartición de los diferentes tipos de transporte existentes en el AI para establecer qué porcentaje está sujeto a mecanismos de recaudo?    ",null,10]
[null,"¿Se identificaron todos los grupos vulnerables que deben quedar incluidos en la política de tarifa diferencial desde el inicio del proyecto?",null,5]
[null," ¿Hay posibilidad de que usuarios residentes del AI y actividades productivas de la zona apliquen a tarifas diferenciales sin ser parte de grupos vulnerables?  ",null,5]
[null,"¿El proyecto concesionado ha gestionado efectivamente inconformidades pasadas relacionadas con el recaudo sin acudir a tarifas diferenciales en poblaciones no vulnerables?",null,10]
[null,"¿Se tuvieron en cuenta impactos socioeconómicos del territorio tales como: impactos al sector agrícola para la comercialización y logística de productos; impactos al sector educativo; impactos al sector turístico; impactos a población vulnerable por desplazamiento a centros médicos, trabajo, núcleos familiares entre otros, por el desarrollo del proyecto?",null,20]
[null,"Dentro del diagnóstico socioeconómico de la población ubicada en el AI ¿Se identificó que su nivel de vulnerabilidad no se verá exacerbado por la ubicación del proyecto y/o los mecanismos de recaudo y el cobro tarifario?",null,10]
[null,"Como resultado de las socializaciones, ¿se tomaron las Peticiones, Quejas, Reclamos y Sugerencias para dar trámite efectivo respecto al impacto financiero y económico de los cobros del mecanismo de recaudo? ",null,15]
[null,"Para la toma de decisiones sobre los mecanismos de recaudo ¿se tuvieron en cuenta variables que resultaron de los análisis de impactos socioeconómicos y las proyecciones respectivas?",null,10]
[null,"¿Los riesgos contextuales analizados incluyeron presencia de grupos armados, conflictos territoriales, presencia de población vulnerable, étnica o campesina, disturbios precedentes donde se hayan atacado/amenazado puntos y/o mecanismos de recaudo?",null,5]
[null,"¿Las actividades de socialización, información y comunicación han sido estratégicamente diseñadas para involucrar a todos los actores del territorio donde ha prevalecido la transparencia, beneficio y manejo de impactos detectados?",null,5]
[null,"¿El cobro por tarifa diferencial se ha considerado en los análisis de impacto del proyecto?",null,5]
[null,"Puntaje subcategoría 1",{"$f":"((IF(C45=\"N/A\",0,C45)*D45)+(IF(C46=\"N/A\",0,C46)*D46)+(IF(C47=\"N/A\",0,C47)*D47)+(IF(C48=\"N/A\",0,C48)*D48)+(IF(C49=\"N/A\",0,C49)*D49)+(IF(C50=\"N/A\",0,C50)*D50)+(IF(C51=\"N/A\",0,C51)*D51)+(IF(C52=\"N/A\",0,C52)*D52)+(IF(C53=\"N/A\",0,C53)*D53)+(IF(C54=\"N/A\",0,C54)*D54)+(IF(C55=\"N/A\",0,C55)*D55))/(IF(OR(C45=\"N/A\",C45=\"\"),0,D45)+IF(OR(C46=\"N/A\",C46=\"\"),0,D46)+IF(OR(C47=\"N/A\",C47=\"\"),0,D47)+IF(OR(C48=\"N/A\",C48=\"\"),0,D48)+IF(OR(C49=\"N/A\",C49=\"\"),0,D49)+IF(OR(C50=\"N/A\",C50=\"\"),0,D50)+IF(OR(C51=\"N/A\",C51=\"\"),0,D51)+IF(OR(C52=\"N/A\",C52=\"\"),0,D52)+IF(OR(C53=\"N/A\",C53=\"\"),0,D53)+IF(OR(C54=\"N/A\",C54=\"\"),0,D54)+IF(OR(C55=\"N/A\",C55=\"\"),0,D55))","v":{"$error":"#DIV/0!"}}]
[null,"Subcategoría 2: Accesibilidad Universal"]
[null,"¿Los diseños geométricos aprobados cuentan con la incorporación de las consideraciones aplicables, realizadas por parte de población vulnerable identificada?",null,25]
[null,"¿Los diseños geométricos aprobados cuentan con el cumplimiento respectivo de normatividad nacional y recomendaciones internacionales sobre accesibilidad universal?",null,25]
[null,"¿El presupuesto estimado para los Diseños, contempló el cumplimiento respectivo de normatividad nacional y recomendaciones internaciones sobre accesibilidad universal?  ",null,20]
[null,"¿Dentro de los escenarios de participación se realizaron las gestiones pertinentes a las recomendaciones y propuestas presentadas por la ciudadanía en materia de accesibilidad, barreras físicas, espacio público, accesos y retornos entre otros temas de infraestructura?",null,30]
[null,"Puntaje subcategoría 2",{"$f":"((IF(C58=\"N/A\",0,C58)*D58)+(IF(C59=\"N/A\",0,C59)*D59)+(IF(C60=\"N/A\",0,C60)*D60)+(IF(C61=\"N/A\",0,C61)*D61))/(IF(OR(C58=\"N/A\",C58=\"\"),0,D58)+IF(OR(C59=\"N/A\",C59=\"\"),0,D59)+IF(OR(C60=\"N/A\",C60=\"\"),0,D60)+IF(OR(C61=\"N/A\",C61=\"\"),0,D61))","v":{"$error":"#DIV/0!"}}]
[null,"Puntaje de probabilidad Categoría",{"$f":"IFERROR((IFERROR(C56,0)+IFERROR(C62,0))/(IF(COUNTIF(C45:C55,\"N/A\")+COUNTIF(C45:C55,\"\")=11,0,1)+IF(COUNTIF(C58:C61,\"N/A\")+COUNTIF(C58:C61,\"\")=4,0,1)),0)","v":0}]
[null,"Probabilidad Categoría",{"$f":"_xlfn.IFS(AND(1>=C63,C63>0.75),\"BAJO\",AND(0.75>=C63,C63>0.5),\"MEDIO-BAJO\",AND(0.5>=C63,C63>0.25),\"MEDIO-ALTO\",AND(0.25>=C63,C63>=0),\"ALTO\")","v":"ALTO"}]
[]
[null,"Categoría: Patrimonio Cultural"]
[null,"Subcategoría 1: Protección del patrimonio cultural y patrimonio cultural crítico en el diseño y ejecución de los proyectos, y cumplimiento de normas y procedimientos nacionales en patrimonio cultural"]
[null,"Pregunta Orientadora","Calificación (1=Sí, 0=No)","Peso base","Etapa en la que la pregunta se considera aplicable ",null,null,null,"Observaciones"]
[null,null,null,null,"E","PC","C","O&M"]
[null,"¿Se indagó localmente con las comunidades sobre su conocimiento del patrimonio cultural, especialmente sobre aquellos puntos importantes para las comunidades locales por su valor cultural?",null,5]
[null,"¿El diseño del proyecto tuvo en cuenta la identificación y posible afectación de Bienes de Interés Cultural en el AI?",null,10]
[null,"¿El diseño geométrico del proyecto aprobado está ajustado para disminuir la afectación de Bienes de Interés Cultural y/o alto potencial de hallazgos arqueológicos?",null,15]
[null,"¿Cumple con la siguiente afirmación? Dentro de AI del proyecto no existe patrimonio de la humanidad reconocido por UNESCO u otra entidad de carácter internacional que requiera estudios y/o permisos para el desarrollo del proyecto",null,15]
[null,"¿Se cuenta con la aprobación al Plan de Manejo Arqueológico por parte del ICANH?",null,20]
[null,"¿Las etapas de monitoreo, rescate, laboratorio e informe final están alineadas con los cronogramas de ejecución proyecto según sus etapas?",null,5]
[null,"¿Se obtuvo aprobación el informe final de arqueología por parte del ICANH?",null,15]
[null,"¿En caso de hallazgo y/o intervención en Bienes de Interés Cultural se contó con los permisos, autorizaciones y cumplimiento de recomendaciones dadas por las autoridades competentes?",null,10]
[null,"¿Cumple con la siguiente afirmación? El AI no presenta antecedentes en hallazgos arqueológicos mayores o en protección de Bienes de Interés Cultural",null,5]
[null,"Puntaje de probabilidad Categoría",{"$f":"IFERROR(((IF(C70=\"N/A\",0,C70)*D70)+(IF(C71=\"N/A\",0,C71)*D71)+(IF(C72=\"N/A\",0,C72)*D72)+(IF(C73=\"N/A\",0,C73)*D73)+(IF(C74=\"N/A\",0,C74)*D74)+(IF(C75=\"N/A\",0,C75)*D75)+(IF(C76=\"N/A\",0,C76)*D76)+(IF(C77=\"N/A\",0,C77)*D77)+(IF(C78=\"N/A\",0,C78)*D78))/(IF(OR(C70=\"N/A\",C70=\"\"),0,D70)+IF(OR(C71=\"N/A\",C71=\"\"),0,D71)+IF(OR(C72=\"N/A\",C72=\"\"),0,D72)+IF(OR(C73=\"N/A\",C73=\"\"),0,D73)+IF(OR(C74=\"N/A\",C74=\"\"),0,D74)+IF(OR(C75=\"N/A\",C75=\"\"),0,D75)+IF(OR(C76=\"N/A\",C76=\"\"),0,D76)+IF(OR(C77=\"N/A\",C77=\"\"),0,D77)+IF(OR(C78=\"N/A\",C78=\"\"),0,D78)),0)","v":0}]
[null,"Probabilidad Categoría",{"$f":"_xlfn.IFS(AND(1>=C79,C79>0.75),\"BAJO\",AND(0.75>=C79,C79>0.5),\"MEDIO-BAJO\",AND(0.5>=C79,C79>0.25),\"MEDIO-ALTO\",AND(0.25>=C79,C79>=0),\"ALTO\")","v":"ALTO"}]
[]
[null,"Categoría: Reasentamiento involuntario"]
[null,"Subcategoría 1: Desplazamiento físico y económico "]
[null,"Pregunta Orientadora","Calificación (1=Sí, 0=No)","Peso base","Etapa en la que la pregunta se considera aplicable ",null,null,null,"Observaciones"]
[null,null,null,null,"E","PC","C","O&M"]
[null,"¿Se cuenta con los datos estimados y ubicaciones aproximadas de las Unidades Sociales (US) impactadas por adquisición predial y desplazamiento?  ",null,5]
[null,"¿La totalidad de las Unidades Sociales identificadas cuentan con carácter de legalidad? ",null,5]
[null,"¿Las Unidades Sociales impactadas cuentan con información legal, técnica y económica, actualizada y continua de acuerdo con los impactos, mitigación y compensación estimada?",null,5]
[null,"¿La etapa de monitoreo y seguimiento al restablecimiento de condiciones de vida, cuenta con el análisis y herramientas técnicas para la identificación de brechas socioeconómicas y cierre de éstas causadas por los impactos del proyecto?",null,5]
[null,"¿El proyecto cuenta con programas, estrategias y recursos económicos para la identificación y cierre de brechas socioeconómicas durante los procesos de restablecimiento, reubicación y/o reasentamiento? ",null,10]
[null,"¿La verificación y monitoreo al restablecimiento o mejoramiento de las condiciones de vida se hace de acuerdo a los resultados de la línea base de la caracterización socioeconómica?",null,10]
[null,"¿La oferta inmobiliaria del AI  es adecuada y variada para la recepción de las US que deban ser reubicadas?",null,5]
[null,"¿La oferta de tierras/predios en zonas rurales apta para actividades agrícolas es adecuada y está legalmente soportada para la adquisición y mitigación de las US que deban ser reubicadas?  ",null,5]
[null,"¿El proyecto ha evitado, disminuido o no realizado desalojos forzosos a Unidades Sociales?",null,5]
[null,"Las brechas que se han identificado en la fase de monitoreo y restablecimiento, ¿Se subsanaron a conformidad de los afectados?",null,10]
[null,"¿Fueron estimados los impactos y compensaciones socioeconómicas a terceros (empleados, proveedores entre otros) según estándares internacionales como los de la Corporación Financiera Internacional (IFC por sus siglas en inglés)?",null,10]
[null,"El proyecto cuenta con:\n- Plan de Adquisición Predial",null,5]
[null,"El proyecto cuenta con:\n- Plan de Compensaciones Socioeconómicas",null,5]
[null,"El proyecto cuenta con:\n- Plan de reasentamiento (si aplica)",null,5]
[null,"El proyecto cuenta con:\n- Certificados de no despojo ni tierras abandonadas",null,5]
[null,"¿Fue censada y compensada toda la población afectada directamente, independiente de la forma de ocupación en el territorio, según estándares internacionales como los de la Corporación Financiera Internacional (IFC por sus siglas en inglés)?",null,5]
[null,"Puntaje de probabilidad subcategoría 1",{"$f":"((IF(C86=\"N/A\",0,C86)*D86)+(IF(C88=\"N/A\",0,C88)*D88)+(IF(C89=\"N/A\",0,C89)*D89)+(IF(C90=\"N/A\",0,C90)*D90)+(IF(C91=\"N/A\",0,C91)*D91)+(IF(C92=\"N/A\",0,C92)*D92)+(IF(C93=\"N/A\",0,C93)*D93)+(IF(C94=\"N/A\",0,C94)*D94)+(IF(C95=\"N/A\",0,C95)*D95)+(IF(C96=\"N/A\",0,C96)*D96)+(IF(C97=\"N/A\",0,C97)*D97)+(IF(C98=\"N/A\",0,C98)*D98)+(IF(C99=\"N/A\",0,C99)*D99)+(IF(C100=\"N/A\",0,C100)*D100)+(IF(C101=\"N/A\",0,C101)*D101))/(IF(OR(C86=\"N/A\",C86=\"\"),0,D86)+IF(OR(C88=\"N/A\",C88=\"\"),0,D88)+IF(OR(C89=\"N/A\",C89=\"\"),0,D89)+IF(OR(C90=\"N/A\",C90=\"\"),0,D90)+IF(OR(C91=\"N/A\",C91=\"\"),0,D91)+IF(OR(C92=\"N/A\",C92=\"\"),0,D92)+IF(OR(C93=\"N/A\",C93=\"\"),0,D93)+IF(OR(C94=\"N/A\",C94=\"\"),0,D94)+IF(OR(C95=\"N/A\",C95=\"\"),0,D95)+IF(OR(C96=\"N/A\",C96=\"\"),0,D96)+IF(OR(C97=\"N/A\",C97=\"\"),0,D97)+IF(OR(C98=\"N/A\",C98=\"\"),0,D98)+IF(OR(C99=\"N/A\",C99=\"\"),0,D99)+IF(OR(C100=\"N/A\",C100=\"\"),0,D100)+IF(OR(C101=\"N/A\",C101=\"\"),0,D101))","v":{"$error":"#DIV/0!"}}]
[null,"Subcategoría 2: Diseño del Proyecto por afectación de predios"]
[null,"¿La definición del diseño del proyecto incluyó la identificación preliminar de riesgos e impactos sociales, económicos y culturales disminuyendo o evitando la materialidad de estos impactos negativos?",null,10]
[null,"¿El proyecto ha diseñado espacios de participación focalizado en temas de adquisición de bienes, restablecimiento de vivienda, reubicación y/o reasentamiento? ",null,15]
[null,"¿El diseño del proyecto está alineado con las diferentes herramientas, instrumentos y proyecciones de ordenamiento territorial y planeación de las AI?",null,10]
[null,"¿Los diseños geométricos del proyecto están alineados con las diferentes herramientas, instrumentos y proyecciones de ordenamiento territorial y planeación de las AI?",null,10]
[null,"¿El trazado del proyecto evitó o disminuyó la afectación directa en territorios de comunidades étnicas?",null,10]
[null,"¿Los diseños aprobados tuvieron en cuenta las medidas de impacto, manejo y mitigación ambiental sugerida en el estudio de Impacto Ambiental, licencias, permisos y modificaciones aprobadas? ",null,10]
[null,"En materia de compensaciones socioeconómicas, ¿se tuvo en cuenta la identificación de brechas, la mitigación de éstas y los pagos avaluados a los inmuebles, excluyendo la depreciación de estructuras y activos?",null,15]
[null,"¿El proyecto modificó, cambió o decidió el diseño geométrico final (aprobado) disminuyendo o evitando la mayor afectación predial?",null,20]
[null,"Puntaje de probabilidad subcategoría 2",{"$f":"((IF(C104=\"N/A\",0,C104)*D104)+(IF(C105=\"N/A\",0,C105)*D105)+(IF(C106=\"N/A\",0,C106)*D106)+(IF(C107=\"N/A\",0,C107)*D107)+(IF(C108=\"N/A\",0,C108)*D108)+(IF(C109=\"N/A\",0,C109)*D109)+(IF(C110=\"N/A\",0,C110)*D110)+(IF(C111=\"N/A\",0,C111)*D111))/(IF(OR(C104=\"N/A\",C104=\"\"),0,D104)+IF(OR(C105=\"N/A\",C105=\"\"),0,D105)+IF(OR(C106=\"N/A\",C106=\"\"),0,D106)+IF(OR(C107=\"N/A\",C107=\"\"),0,D107)+IF(OR(C108=\"N/A\",C108=\"\"),0,D108)+IF(OR(C109=\"N/A\",C109=\"\"),0,D109)+IF(OR(C110=\"N/A\",C110=\"\"),0,D110)+IF(OR(C111=\"N/A\",C111=\"\"),0,D111))","v":{"$error":"#DIV/0!"}}]
[null,"Puntaje de probabilidad Categoría",{"$f":"IFERROR((IFERROR(C102,0)+IFERROR(C112,0))/(IF(COUNTIF(C86:C101,\"N/A\")+COUNTIF(C86:C101,\"\")=16,0,1)+IF(COUNTIF(C104:C111,\"N/A\")+COUNTIF(C104:C111,\"\")=8,0,1)),0)","v":0}]
[null,"Probabilidad Categoría",{"$f":"_xlfn.IFS(AND(1>=C113,C113>0.75),\"BAJO\",AND(0.75>=C113,C113>0.5),\"MEDIO-BAJO\",AND(0.5>=C113,C113>0.25),\"MEDIO-ALTO\",AND(0.25>=C113,C113>=0),\"ALTO\")","v":"ALTO"}]

{"sheet":"PreguntasOrientadorasGobernanza","index":12,"n_rows":41,"n_cols":9,"rows_kept":41,"cut":false,"hidden":false,"merged":[[1,1,1,8],[2,1,2,8],[20,2,20,8],[23,1,23,8],[25,4,25,7],[25,3,26,3],[25,1,26,1],[25,2,26,2],[3,1,4,1],[24,1,24,8],[25,8,26,8],[40,2,40,8],[39,2,39,8],[3,4,3,7],[3,3,4,3],[3,2,4,2],[3,8,4,8],[21,2,21,8]]}
[]
[null,"Categoría: Grupos de interés "]
[null,"Subcategoría 1: Identificación, análisis, consulta y participación de actores"]
[null,"Pregunta Orientadora","Calificación (1=Sí, 0=No)","Peso base","Etapa en la que la pregunta se considera aplicable ",null,null,null,"Observaciones"]
[null,null,null,null,"E","PC","C","O&M"]
[null,"¿El cronograma de obras tiene en cuenta los tiempos establecidos por decreto a cada uno de los trámites ambientales considerando si es entidad nacional o regional?",null,10]
[null,"¿Se cuenta con tiempo de holgura adicional al considerado por decreto al momento de la planeación del cronograma de obras?",null,5]
[null,"¿Se realizó una lista de chequeo de todas las entidades locales, regionales y nacionales frente a las cuales se gestionan trámites ambientales y sociales (incluidos prediales y arqueológicos)?",null,5]
[null," ¿Se incluyó dentro del cronograma, imprevistos asociados al tiempo de presentación de información por parte de subcontratistas sobre estudios objeto de trámite ambiental?",null,5]
[null,"¿Se realizó un mapeo de actores estratégicos en la zona del Proyecto con información socioeconómica y demográfica, para dimensionar el grado de afectación del proyecto?",null,10]
[null,"¿Se consultó, estudió y analizó, junto con la comunidad, en el marco de las socializaciones, información secundaria sobre la importancia de servicios ecosistémicos?",null,10]
[null,"¿Se cuenta con diferentes canales y espacios de participación ciudadana y queda evidencia documental de ello?",null,5]
[null,"¿Dentro de los estudios de riesgo e impacto social se detallaron los impactos/riesgos durante las diferentes etapas del proyecto, su mitigación y respuesta a través de los programas de gestión social?",null,10]
[null,"¿Las propuestas y solicitudes ciudadanas fueron gestionadas de manera eficaz y oportuna respecto a la pertinencia de ser incluidas en el proyecto y socializadas con la comunidad?",null,5]
[null," ¿El Proyecto cuenta con un plan estratégico de comunicaciones?",null,5]
[null,"¿Dentro de los criterios de selección de las alternativas de diseño geométrico final se tuvieron en cuenta los resultados de los procesos de socialización y participación con todos los actores estratégicos relacionados con el proyecto?  ",null,5]
[null,"¿Las actividades detalladas en los programas de gestión social están articuladas, medidas, evaluadas, monitoreadas y ajustadas de acuerdo con los impactos específicos identificados para cada etapa del proyecto?",null,10]
[null,"¿El proyecto cuenta con actividades y estrategias de relacionamiento interinstitucional (público o privado) permanente, que hacen presencia en el AI?",null,5]
[null,"¿Se ha evitado que derechos de petición se escalen a otras instancias legales (demandas, tutelas, acciones populares, entre otros) a través del uso de diferentes mecanismos de gestión?",null,5]
[null,"¿El sistema de gestión cuenta con procesos de auditoría interna y externa ambiental y social de manera independiente?",null,5]
[null,"Puntaje de probabilidad Categoría",{"$f":"IFERROR(((IF(C6=\"N/A\",0,C6)*D6)+(IF(C7=\"N/A\",0,C7)*D7)+(IF(C8=\"N/A\",0,C8)*D8)+(IF(C9=\"N/A\",0,C9)*D9)+(IF(C10=\"N/A\",0,C10)*D10)+(IF(C11=\"N/A\",0,C11)*D11)+(IF(C12=\"N/A\",0,C12)*D12)+(IF(C13=\"N/A\",0,C13)*D13)+(IF(C14=\"N/A\",0,C14)*D14)+(IF(C15=\"N/A\",0,C15)*D15)+(IF(C16=\"N/A\",0,C16)*D16)+(IF(C17=\"N/A\",0,C17)*D17)+(IF(C18=\"N/A\",0,C18)*D18)+(IF(C19=\"N/A\",0,C19)*D19)+(IF(C20=\"N/A\",0,C20)*D20))/(IF(OR(C6=\"N/A\",C6=\"\"),0,D6)+IF(OR(C7=\"N/A\",C7=\"\"),0,D7)+IF(OR(C8=\"N/A\",C8=\"\"),0,D8)+IF(OR(C9=\"N/A\",C9=\"\"),0,D9)+IF(OR(C10=\"N/A\",C10=\"\"),0,D10)+IF(OR(C11=\"N/A\",C11=\"\"),0,D11)+IF(OR(C12=\"N/A\",C12=\"\"),0,D12)+IF(OR(C13=\"N/A\",C13=\"\"),0,D13)+IF(OR(C14=\"N/A\",C14=\"\"),0,D14)+IF(OR(C15=\"N/A\",C15=\"\"),0,D15)+IF(OR(C16=\"N/A\",C16=\"\"),0,D16)+IF(OR(C17=\"N/A\",C17=\"\"),0,D17)+IF(OR(C18=\"N/A\",C18=\"\"),0,D18)+IF(OR(C19=\"N/A\",C19=\"\"),0,D19)+IF(OR(C20=\"N/A\",C20=\"\"),0,D20)),0)","v":0}]
[null,"Probabilidad Categoría",{"$f":"_xlfn.IFS(AND(1>=C21,C21>0.75),\"BAJO\",AND(0.75>=C21,C21>0.5),\"MEDIO-BAJO\",AND(0.5>=C21,C21>0.25),\"MEDIO-ALTO\",AND(0.25>=C21,C21>=0),\"ALTO\")","v":"ALTO"}]
[]
[null,"Categoría: Identificación de riesgos"]
[null,"Subcategoría 1: Identificación de riesgos e impactos contextuales"]
[null,"Pregunta Orientadora","Calificación (1=Sí, 0=No)","Peso base","Etapa en la que la pregunta se considera aplicable ",null,null,null,"Observaciones"]
[null,null,null,null,"E","PC","C","O&M"]
[null,"¿El proyecto ha mapeado y levantado información primaria sobre zonas ZOMAC (Zonas Más Afectadas por el Conflicto Armado) dentro de su área de influencia?",null,15]
[null,"¿Se han analizado las incidencias de que el proyecto o parte de éste se encuentre en zonas con concentración alta de investigaciones atribuidas a GAO y/o con presencia de GAO?",null,10]
[null,"¿El proyecto ha mapeado las zonas de actividades al margen de la ley en la región o se encuentra en una zona de difícil acceso por actividades al margen de la ley?",null,10]
[null,"¿El proyecto cuenta con información sobre dinámicas políticas (inestabilidad política o cambios de gobierno) en los municipios o departamentos donde se encuentra, con el fin de evitar impactos relacionados con la continuidad del proyecto?",null,5]
[null,"¿El proyecto cuenta con una caracterización de las actividades económicas (legales e ilegales) que se desarrollan en la región? ",null,5]
[null,"¿El proyecto ha tenido en cuenta variables sociales de migrantes (interna o externa), desplazamiento forzado, refugiados adaptando sus planes de gestión a estas contingencias?",null,5]
[null,"¿Se ha evaluado la capacidad interinstitucional de las principales regiones estratégicas en donde opera el Proyecto y sus resultados han sido incorporados en las gestiones de los programas ambientales y sociales?",null,5]
[null,"¿El proyecto cuenta ya con un estudio ambiental aprobado o con permisos que identifiquen la línea base para cada medio requerido (biótico, abiótico y socioeconómico)?",null,10]
[null,"¿La siguiente afirmación es cierta? El proyecto no ha tenido negaciones de permisos debido a la inconformidad o insuficiencia de la información durante los trámites con la autoridad ambiental, social o la que esté relacionada con el tema del permiso. ",null,5]
[null,"¿Se ha indagado sobre la existencia de antecedentes de medidas adicionales que le sean impuestas a un concesionario (en otros proyectos) por impactos no previstos en el desarrollo de un proyecto de infraestructura?",null,10]
[null,"¿Se cuenta con los soportes legales correspondientes de predios libres de pendientes ambientales?",null,10]
[null,"¿Se ha indagado con la comunidad sobre las condiciones previas de la zona que pueden afectar de manera negativa el proyecto: presencia de grupos armados al margen de la ley, informalidad económica, ausencia de instituciones estatales, corrupción?",null,10]
[null,"Puntaje de probabilidad Categoría 1:",{"$f":"IFERROR(((IF(C28=\"N/A\",0,C28)*D28)+(IF(C29=\"N/A\",0,C29)*D29)+(IF(C30=\"N/A\",0,C30)*D30)+(IF(C31=\"N/A\",0,C31)*D31)+(IF(C32=\"N/A\",0,C32)*D32)+(IF(C33=\"N/A\",0,C33)*D33)+(IF(C34=\"N/A\",0,C34)*D34)+(IF(C35=\"N/A\",0,C35)*D35)+(IF(C36=\"N/A\",0,C36)*D36)+(IF(C37=\"N/A\",0,C37)*D37)+(IF(C38=\"N/A\",0,C38)*D38)+(IF(C39=\"N/A\",0,C39)*D39))/(IF(OR(C28=\"N/A\",C28=\"\"),0,D28)+IF(OR(C29=\"N/A\",C29=\"\"),0,D29)+IF(OR(C30=\"N/A\",C30=\"\"),0,D30)+IF(OR(C31=\"N/A\",C31=\"\"),0,D31)+IF(OR(C32=\"N/A\",C32=\"\"),0,D32)+IF(OR(C33=\"N/A\",C33=\"\"),0,D33)+IF(OR(C34=\"N/A\",C34=\"\"),0,D34)+IF(OR(C35=\"N/A\",C35=\"\"),0,D35)+IF(OR(C36=\"N/A\",C36=\"\"),0,D36)+IF(OR(C37=\"N/A\",C37=\"\"),0,D37)+IF(OR(C38=\"N/A\",C38=\"\"),0,D38)+IF(OR(C39=\"N/A\",C39=\"\"),0,D39)),0)","v":0}]
[null,"Probabilidad Categoría",{"$f":"_xlfn.IFS(AND(1>=C40,C40>0.75),\"BAJO\",AND(0.75>=C40,C40>0.5),\"MEDIO-BAJO\",AND(0.5>=C40,C40>0.25),\"MEDIO-ALTO\",AND(0.25>=C40,C40>=0),\"ALTO\")","v":"ALTO"}]

{"sheet":"Preguntas Orientadoras Resili.","index":13,"n_rows":26,"n_cols":9,"rows_kept":26,"cut":false,"hidden":false,"merged":[[25,2,25,8],[23,2,23,8],[24,2,24,8],[1,1,1,8],[14,2,14,8],[15,1,15,8],[19,2,19,8],[20,1,20,8],[3,2,4,2],[3,1,4,1],[3,4,3,7],[3,8,4,8],[2,1,2,8],[3,3,4,3]]}
[]
[null,"Categoría: Gestión de Riesgo de Desastre y Cambio Climático"]
[null,"Subcategoría 1: Análisis de riesgo multiamenaza"]
[null,"Pregunta Orientadora","Calificación (1=Sí, 0=No)","Peso base","Etapa en la que la pregunta se considera aplicable ",null,null,null,"Observaciones"]
[null,null,null,null,"E","PC","C","O&M"]
[null,"¿Se evaluaron todas las amenazas naturales, incluido el efecto del cambio climático sobre las amenazas hidrometeorológicas, determinando su intensidad, frecuencia y extensión espacial usando métodos estándar y reconocidos? Ej. Calificación (cualitativa, amenaza por inundación Baja-Media-Alta) o cuantificación (altura de inundación con periodos de retorno de 100 años y/o mapas de inundación) de la intensidad, frecuencia y extensión espacial de las amenazas.",null,15]
[null,"¿Se caracterizó la exposición (a amenazas naturales) de línea de base para activos y población incluyendo características físicas como sistemas estructurales, materiales, altura, número de pisos, valor físico, población y demografía? Ej. Base de datos georreferenciada listando ubicación, tipología, y características principales de todos los activos del proyecto expuestos a las amenazas.",null,5]
[null,"¿Se caracterizó la exposición (a amenazas naturales) resultante con la implementación del proyecto para activos y población incluyendo características físicas como sistemas estructurales, materiales, altura, número de pisos, valor físico, población y demografía? Ej. Base de datos georreferenciada listando ubicación, tipología, y características principales de todos los activos del proyecto expuestos a las amenazas que permita identificar cambios en la exposición con la implementación del proyecto.",null,5]
[null,"¿Se caracterizó la vulnerabilidad física y social de todos los componentes del proyecto (todos los activos, estructuras/infraestructuras que hacen parte del proyecto y que pueden verse afectadas por amenazas naturales)? Ej. Calificación (cualitativa; Poco vulnerable-Medianamente vulnerable-Altamente vulnerable) o cuantificación (funciones de vulnerabilidad o fragilidad / tasas de daño económico / probabilidades de alcanzar Estados de Daño definidos / probabilidad de colapso / probabilidad de heridos / probabilidad de fatalidades) de la propensión al daño de cada activo según distintas intensidades de la amenaza.",null,5]
[null,"¿Se caracterizó la vulnerabilidad física y social de las comunidades aledañas dentro del AI? Ej. Calificación (cualitativa; Poco vulnerable-Medianamente vulnerable-Altamente vulnerable) o cuantificación (funciones de vulnerabilidad o fragilidad / tasas de daño económico / probabilidades de alcanzar Estados de Daño definidos / probabilidad de colapso / probabilidad de heridos / probabilidad de fatalidades) de la propensión al daño de cada activo según distintas intensidades de la amenaza.",null,5]
[null,"¿Se evaluó el riesgo del proyecto y de las comunidades aledañas correspondiente a las condiciones de línea de base, combinando los tres componentes del riesgo (amenaza, exposición y vulnerabilidad) utilizando métodos estándar o reconocidos (cualitativos o cuantitativos) acordes con la complejidad del proyecto? Ej. Calificación (cualitativa; riesgo Bajo-Medio-Alto) o cuantificación (daños físicos, pérdidas monetarias por escenario o con probabilidades asociadas/valor esperado) de los daños y/o pérdidas económicas directas y/o indirectas, afectados o pérdidas de vida en todos los activos del proyecto. ",null,15]
[null,"¿Se evaluó el riesgo del proyecto y de las comunidades aledañas correspondiente a las condiciones con la implementación del proyecto y cualquier alternativas o medida de gestión del riesgo propuesta, combinando los tres componentes del riesgo (amenaza, exposición y vulnerabilidad) utilizando métodos estándar o reconocidos (cualitativos o cuantitativos) acorde con la complejidad del proyecto? Ej. Calificación (cualitativa; riesgo Bajo-Medio-Alto) o cuantificación (daños físicos, pérdidas monetarias por escenario o con probabilidades asociadas/valor esperado) de los daños y/o pérdidas económicas directas y/o indirectas, afectados o pérdidas de vida en todos los activos del proyecto.",null,15]
[null,"¿Las evaluaciones de amenaza, exposición, vulnerabilidad y riesgo han sido utilizadas para informar e incidir en la estructuración del proyecto técnicamente (selección de sitio, diseños, análisis de alternativas), económicamente (viabilidad, costo-beneficio) y financieramente (presupuesto, fuentes de financiación, fondos)?",null,15]
[null,"¿El proyecto evita la generación de riesgo nuevo o adicional (incremental) para la comunidad o el medio ambiente aledaño?",null,20]
[null,"Puntaje de probabilidad subcategoría 1. ",{"$f":"((IF(C6=\"N/A\",0,C6)*D6)+(IF(C7=\"N/A\",0,C7)*D7)+(IF(C8=\"N/A\",0,C8)*D8)+(IF(C9=\"N/A\",0,C9)*D9)+(IF(C10=\"N/A\",0,C10)*D10)+(IF(C11=\"N/A\",0,C11)*D11)+(IF(C12=\"N/A\",0,C12)*D12)+(IF(C13=\"N/A\",0,C13)*D13)+(IF(C14=\"N/A\",0,C14)*D14))/(IF(OR(C6=\"N/A\",C6=\"\"),0,D6)+IF(OR(C7=\"N/A\",C7=\"\"),0,D7)+IF(OR(C8=\"N/A\",C8=\"\"),0,D8)+IF(OR(C9=\"N/A\",C9=\"\"),0,D9)+IF(OR(C10=\"N/A\",C10=\"\"),0,D10)+IF(OR(C11=\"N/A\",C11=\"\"),0,D11)+IF(OR(C12=\"N/A\",C12=\"\"),0,D12)+IF(OR(C13=\"N/A\",C13=\"\"),0,D13)+IF(OR(C14=\"N/A\",C14=\"\"),0,D14))","v":{"$error":"#DIV/0!"}}]
[null,"Subcategoría 2: Plan de gestión del riesgo de desastre  "]
[null,"¿Se han identificado medidas y/u opciones estructurales (de fortalecimiento, de protección y/o control) y no estructurales (de planificación, institucionales, de educación y concientización, de preparación y respuesta) de mitigación del riesgo posibles para el proyecto?",null,25]
[null,"¿Se evaluó (a través de análisis estándares o reconocidos como costo-beneficio, multicriterio o costo-efectividad) y priorizó las medidas de mitigación del riesgo para cada etapa (diseño, construcción y operación)?",null,25]
[null,"¿Se han implementado las medidas de reducción del riesgo evaluadas y priorizadas?",null,50]
[null,"Puntaje de probabilidad subcategoría 2",{"$f":"((IF(C17=\"N/A\",0,C17)*D17)+(IF(C18=\"N/A\",0,C18)*D18)+(IF(C19=\"N/A\",0,C19)*D19))/(IF(OR(C17=\"N/A\",C17=\"\"),0,D17)+IF(OR(C18=\"N/A\",C18=\"\"),0,D18)+IF(OR(C19=\"N/A\",C19=\"\"),0,D19))","v":{"$error":"#DIV/0!"}}]
[null,"Subcategoría 3: Preparación y respuestas a emergencias "]
[null,"¿Existe o existirá un Plan de Emergencia / Contingencia / Continuidad (ya sea como parte de un plan de gestión del riesgo o como un documento aparte) que define claramente una estructura de gobernanza, roles, responsabilidades y procesos de actuación frente a emergencias? ",null,70]
[null,"¿Existe o existirá un Plan de Emergencia / Contingencia / Continuidad (ya sea como parte de un plan de gestión del riesgo o como un documento aparte) que define claramente requerimientos y procesos de adquisición de materiales y equipamiento?",null,30]
[null,"Puntaje de probabilidad subcategoría 3",{"$f":"((IF(C22=\"N/A\",0,C22)*D22)+(IF(C23=\"N/A\",0,C23)*D23))/(IF(OR(C22=\"N/A\",C22=\"\"),0,D22)+IF(OR(C23=\"N/A\",C23=\"\"),0,D23))","v":{"$error":"#DIV/0!"}}]
[null,"Puntaje de probabilidad Categoría",{"$f":"IFERROR((IFERROR(C15,0)+IFERROR(C20,0)+IFERROR(C24,0))/(IF(COUNTIF(C6:C14,\"N/A\")+COUNTIF(C6:C14,\"\")=9,0,1)+IF(COUNTIF(C17:C19,\"N/A\")+COUNTIF(C17:C19,\"\")=3,0,1)+IF(COUNTIF(C22:C23,\"N/A\")+COUNTIF(C22:C23,\"\")=2,0,1)),0)","v":0}]
[null,"Probabilidad Categoría",{"$f":"_xlfn.IFS(AND(1>=C25,C25>0.75),\"BAJO\",AND(0.75>=C25,C25>0.5),\"MEDIO-BAJO\",AND(0.5>=C25,C25>0.25),\"MEDIO-ALTO\",AND(0.25>=C25,C25>=0),\"ALTO\")","v":"ALTO"}]

{"sheet":"Nivel de Impacto","index":14,"n_rows":56,"n_cols":11,"rows_kept":56,"cut":false,"hidden":false,"merged":[[43,1,43,10],[44,1,45,1],[44,2,44,5],[44,6,44,7],[44,8,46,8],[44,9,46,9],[44,10,46,10],[12,10,14,10],[17,1,17,10],[18,1,19,1],[18,2,18,5],[18,6,18,7],[18,8,20,8],[18,9,20,9],[18,10,20,10],[12,1,13,1],[12,2,12,5],[12,6,12,7],[12,8,14,8],[12,9,14,9],[51,1,51,10],[52,1,53,1],[52,2,52,5],[52,6,52,7],[52,8,54,8],[52,9,54,9],[52,10,54,10],[30,10,32,10],[37,1,37,10],[38,1,39,1],[38,2,38,5],[38,6,38,7],[38,8,40,8],[38,9,40,9],[38,10,40,10],[30,1,31,1],[30,2,30,5],[30,6,30,7],[30,8,32,8],[30,9,32,9],[29,1,29,10],[3,1,3,10],[4,10,6,10],[4,2,4,5],[4,6,4,7],[4,9,6,9],[4,1,5,1],[4,8,6,8],[23,1,23,10],[24,1,25,1],[24,2,24,5],[24,6,24,7],[24,8,26,8],[24,9,26,9],[24,10,26,10],[11,1,11,10]]}
[]
[null,"AMBIENTAL"]
[]
[null,"Categoría Biodiversidad"]
[null,"Riesgo","Impactos en ejecución",null,null,null,"Impactos financieros",null,"Puntaje de impacto de riesgo","Clasificación","Detona"]
[null,null,"Cronograma","Detonante","Alcance","Terceros","Duración","Sobrecosto"]
[null,"Peso sobre 100 puntos",12.5,12.5,12.5,12.5,25,25]
[null,"Riesgo contractual 1",null,null,null,null,null,null,{"$f":"((C8*$C$7)+(D8*$D$7)+(E8*$E$7)+(F8*$F$7)+(G8*$G$7)+(H8*$H$7))/SUM($C$7:$H$7)","v":0},{"$f":"_xlfn.IFS(AND(1<=I8,I8<=1.75),\"ALTO\",AND(1.75<I8,I8<=2.5),\"MEDIO-ALTO\",AND(2.5<I8,I8<=3.25),\"MEDIO-BAJO\",AND(3.25<I8,I8<=4),\"BAJO\")","v":{"$error":"#N/A"}}]
[]
[null,"SOCIAL"]
[]
[null,"Categoría Comunidades étnicas"]
[null,"Riesgo","Impactos en ejecución",null,null,null,"Impactos financieros",null,"Puntaje de impacto de riesgo","Clasificación","Detona"]
[null,null,"Cronograma","Detonante","Alcance","Terceros","Duración","Sobrecosto"]
[null,"Peso sobre 100 puntos",12.5,12.5,12.5,12.5,25,25]
[null,"Riesgo contractual 1",null,null,null,null,null,null,{"$f":"((C16*$C$7)+(D16*$D$7)+(E16*$E$7)+(F16*$F$7)+(G16*$G$7)+(H16*$H$7))/SUM($C$7:$H$7)","v":0},{"$f":"_xlfn.IFS(AND(1<=I16,I16<=1.75),\"ALTO\",AND(1.75<I16,I16<=2.5),\"MEDIO-ALTO\",AND(2.5<I16,I16<=3.25),\"MEDIO-BAJO\",AND(3.25<I16,I16<=4),\"BAJO\")","v":{"$error":"#N/A"}}]
[]
[null,"Categoría Grupos vulnerables"]
[null,"Riesgo","Impactos en ejecución",null,null,null,"Impactos financieros",null,"Puntaje de impacto de riesgo","Clasificación","Detona"]
[null,null,"Cronograma","Detonante","Alcance","Terceros","Duración","Sobrecosto"]
[null,"Peso sobre 100 puntos",12.5,12.5,12.5,12.5,25,25]
[null,"Riesgo contractual 1",null,null,null,null,null,null,{"$f":"((C22*$C$7)+(D22*$D$7)+(E22*$E$7)+(F22*$F$7)+(G22*$G$7)+(H22*$H$7))/SUM($C$7:$H$7)","v":0},{"$f":"_xlfn.IFS(AND(1<=I22,I22<=1.75),\"ALTO\",AND(1.75<I22,I22<=2.5),\"MEDIO-ALTO\",AND(2.5<I22,I22<=3.25),\"MEDIO-BAJO\",AND(3.25<I22,I22<=4),\"BAJO\")","v":{"$error":"#N/A"}}]
[]
[null,"Categoría Patrimonio cultural"]
[null,"Riesgo","Impactos en ejecución",null,null,null,"Impactos financieros",null,"Puntaje de impacto de riesgo","Clasificación","Detona"]
[null,null,"Cronograma","Detonante","Alcance","Terceros","Duración","Sobrecosto"]
[null,"Peso sobre 100 puntos",12.5,12.5,12.5,12.5,25,25]
[null,"Riesgo contractual 1",null,null,null,null,null,null,{"$f":"((C28*$C$7)+(D28*$D$7)+(E28*$E$7)+(F28*$F$7)+(G28*$G$7)+(H28*$H$7))/SUM($C$7:$H$7)","v":0},{"$f":"_xlfn.IFS(AND(1<=I28,I28<=1.75),\"ALTO\",AND(1.75<I28,I28<=2.5),\"MEDIO-ALTO\",AND(2.5<I28,I28<=3.25),\"MEDIO-BAJO\",AND(3.25<I28,I28<=4),\"BAJO\")","v":{"$error":"#N/A"}}]
[]
[null,"Categoría Reasentamiento involuntario"]
[null,"Riesgo","Impactos en ejecución",null,null,null,"Impactos financieros",null,"Puntaje de impacto de riesgo","Clasificación","Detona"]
[null,null,"Cronograma","Detonante","Alcance","Terceros","Duración","Sobrecosto"]
[null,"Peso sobre 100 puntos",12.5,12.5,12.5,12.5,25,25]
[null,"Riesgo contractual 1",null,null,null,null,null,null,{"$f":"((C34*$C$7)+(D34*$D$7)+(E34*$E$7)+(F34*$F$7)+(G34*$G$7)+(H34*$H$7))/SUM($C$7:$H$7)","v":0},{"$f":"_xlfn.IFS(AND(1<=I34,I34<=1.75),\"ALTO\",AND(1.75<I34,I34<=2.5),\"MEDIO-ALTO\",AND(2.5<I34,I34<=3.25),\"MEDIO-BAJO\",AND(3.25<I34,I34<=4),\"BAJO\")","v":{"$error":"#N/A"}}]
[]
[null,"GOBERNANZA"]
[]
[null,"Categoría Grupos de interés"]
[null,"Riesgo","Impactos en ejecución",null,null,null,"Impactos financieros",null,"Puntaje de impacto de riesgo","Clasificación","Detona"]
[null,null,"Cronograma","Detonante","Alcance","Terceros","Duración","Sobrecosto"]
[null,"Peso sobre 100 puntos",12.5,12.5,12.5,12.5,25,25]
[null,"Riesgo contractual 1",null,null,null,null,null,null,{"$f":"((C42*$C$7)+(D42*$D$7)+(E42*$E$7)+(F42*$F$7)+(G42*$G$7)+(H42*$H$7))/SUM($C$7:$H$7)","v":0},{"$f":"_xlfn.IFS(AND(1<=I42,I42<=1.75),\"ALTO\",AND(1.75<I42,I42<=2.5),\"MEDIO-ALTO\",AND(2.5<I42,I42<=3.25),\"MEDIO-BAJO\",AND(3.25<I42,I42<=4),\"BAJO\")","v":{"$error":"#N/A"}}]
[]
[null,"Categoría Identificación de riesgos e impactos"]
[null,"Riesgo","Impactos en ejecución",null,null,null,"Impactos financieros",null,"Puntaje de impacto de riesgo","Clasificación","Detona"]
[null,null,"Cronograma","Detonante","Alcance","Terceros","Duración","Sobrecosto"]
[null,"Peso sobre 100 puntos",12.5,12.5,12.5,12.5,25,25]
[null,"Riesgo contractual 1",null,null,null,null,null,null,{"$f":"((C48*$C$7)+(D48*$D$7)+(E48*$E$7)+(F48*$F$7)+(G48*$G$7)+(H48*$H$7))/SUM($C$7:$H$7)","v":0},{"$f":"_xlfn.IFS(AND(1<=I48,I48<=1.75),\"ALTO\",AND(1.75<I48,I48<=2.5),\"MEDIO-ALTO\",AND(2.5<I48,I48<=3.25),\"MEDIO-BAJO\",AND(3.25<I48,I48<=4),\"BAJO\")","v":{"$error":"#N/A"}}]
[]
[null,"RESILIENCIA"]
[]
[null,"Categoría Gestión de riesgo de desastre y cambio climático"]
[null,"Riesgo","Impactos en ejecución",null,null,null,"Impactos financieros",null,"Puntaje de impacto de riesgo","Clasificación","Detona"]
[null,null,"Cronograma","Detonante","Alcance","Terceros","Duración","Sobrecosto"]
[null,"Peso sobre 100 puntos",12.5,12.5,12.5,12.5,25,25]
[null,"Riesgo contractual 1",null,null,null,null,null,null,{"$f":"((C56*$C$7)+(D56*$D$7)+(E56*$E$7)+(F56*$F$7)+(G56*$G$7)+(H56*$H$7))/SUM($C$7:$H$7)","v":0},{"$f":"_xlfn.IFS(AND(1<=I56,I56<=1.75),\"ALTO\",AND(1.75<I56,I56<=2.5),\"MEDIO-ALTO\",AND(2.5<I56,I56<=3.25),\"MEDIO-BAJO\",AND(3.25<I56,I56<=4),\"BAJO\")","v":{"$error":"#N/A"}}]

{"sheet":"Nivel de Impacto BackUp","index":15,"n_rows":56,"n_cols":11,"rows_kept":56,"cut":false,"hidden":true,"merged":[[30,2,30,5],[30,6,30,7],[30,8,32,8],[30,1,31,1],[30,9,32,9],[24,2,24,5],[24,6,24,7],[24,8,26,8],[18,1,19,1],[24,9,26,9],[18,9,20,9],[24,1,25,1],[4,1,5,1],[4,9,6,9],[18,2,18,5],[18,6,18,7],[18,8,20,8],[4,2,4,5],[4,6,4,7],[4,8,6,8],[12,1,13,1],[12,9,14,9],[12,2,12,5],[12,6,12,7],[12,8,14,8],[38,6,38,7],[38,8,40,8],[52,1,53,1],[52,9,54,9],[52,2,52,5],[52,6,52,7],[52,8,54,8],[44,1,45,1],[44,9,46,9],[44,2,44,5],[44,6,44,7],[44,8,46,8],[38,1,39,1],[38,9,40,9],[38,2,38,5],[38,10,40,10],[44,10,46,10],[52,10,54,10],[3,1,3,10],[11,1,11,10],[17,1,17,10],[23,1,23,10],[29,1,29,10],[37,1,37,10],[43,1,43,10],[51,1,51,10],[4,10,6,10],[12,10,14,10],[18,10,20,10],[24,10,26,10],[30,10,32,10]]}
[]
[null,"AMBIENTAL"]
[]
[null,"Categoría Biodiversidad"]
[null,"Riesgo","Impactos en ejecución",null,null,null,"Impactos financieros",null,"Puntaje de impacto de riesgo","Clasificación","Detona"]
[null,null,"Cronograma","Detonante","Alcance","Terceros","Duración","Sobrecosto"]
[null,"Peso sobre 100 puntos",12.5,12.5,12.5,12.5,25,25]
[null,"Riesgo contractual 1",null,null,null,null,null,null,{"$f":"((C8*$C$7)+(D8*$D$7)+(E8*$E$7)+(F8*$F$7)+(G8*$G$7)+(H8*$H$7))/SUM($C$7:$H$7)","v":0},{"$f":"_xlfn.IFS(AND(1<=I8,I8<=1.75),\"ALTO\",AND(1.75<I8,I8<=2.5),\"MEDIO-ALTO\",AND(2.5<I8,I8<=3.25),\"MEDIO-BAJO\",AND(3.25<I8,I8<=4),\"BAJO\")","v":{"$error":"#N/A"}}]
[]
[null,"SOCIAL"]
[]
[null,"Categoría Comunidades étnicas"]
[null,"Riesgo","Impactos en ejecución",null,null,null,"Impactos financieros",null,"Puntaje de impacto de riesgo","Clasificación","Detona"]
[null,null,"Cronograma","Detonante","Alcance","Terceros","Duración","Sobrecosto"]
[null,"Peso sobre 100 puntos",12.5,12.5,12.5,12.5,25,25]
[null,"Riesgo contractual 1",null,null,null,null,null,null,{"$f":"((C16*$C$7)+(D16*$D$7)+(E16*$E$7)+(F16*$F$7)+(G16*$G$7)+(H16*$H$7))/SUM($C$7:$H$7)","v":0},{"$f":"_xlfn.IFS(AND(1<=I16,I16<=1.75),\"ALTO\",AND(1.75<I16,I16<=2.5),\"MEDIO-ALTO\",AND(2.5<I16,I16<=3.25),\"MEDIO-BAJO\",AND(3.25<I16,I16<=4),\"BAJO\")","v":{"$error":"#N/A"}}]
[]
[null,"Categoría Grupos vulnerables"]
[null,"Riesgo","Impactos en ejecución",null,null,null,"Impactos financieros",null,"Puntaje de impacto de riesgo","Clasificación","Detona"]
[null,null,"Cronograma","Detonante","Alcance","Terceros","Duración","Sobrecosto"]
[null,"Peso sobre 100 puntos",12.5,12.5,12.5,12.5,25,25]
[null,"Riesgo contractual 1",null,null,null,null,null,null,{"$f":"((C22*$C$7)+(D22*$D$7)+(E22*$E$7)+(F22*$F$7)+(G22*$G$7)+(H22*$H$7))/SUM($C$7:$H$7)","v":0},{"$f":"_xlfn.IFS(AND(1<=I22,I22<=1.75),\"ALTO\",AND(1.75<I22,I22<=2.5),\"MEDIO-ALTO\",AND(2.5<I22,I22<=3.25),\"MEDIO-BAJO\",AND(3.25<I22,I22<=4),\"BAJO\")","v":{"$error":"#N/A"}}]
[]
[null,"Categoría Patrimonio cultural"]
[null,"Riesgo","Impactos en ejecución",null,null,null,"Impactos financieros",null,"Puntaje de impacto de riesgo","Clasificación","Detona"]
[null,null,"Cronograma","Detonante","Alcance","Terceros","Duración","Sobrecosto"]
[null,"Peso sobre 100 puntos",12.5,12.5,12.5,12.5,25,25]
[null,"Riesgo contractual 1",null,null,null,null,null,null,{"$f":"((C28*$C$7)+(D28*$D$7)+(E28*$E$7)+(F28*$F$7)+(G28*$G$7)+(H28*$H$7))/SUM($C$7:$H$7)","v":0},{"$f":"_xlfn.IFS(AND(1<=I28,I28<=1.75),\"ALTO\",AND(1.75<I28,I28<=2.5),\"MEDIO-ALTO\",AND(2.5<I28,I28<=3.25),\"MEDIO-BAJO\",AND(3.25<I28,I28<=4),\"BAJO\")","v":{"$error":"#N/A"}}]
[]
[null,"Categoría Reasentamiento involuntario"]
[null,"Riesgo","Impactos en ejecución",null,null,null,"Impactos financieros",null,"Puntaje de impacto de riesgo","Clasificación","Detona"]
[null,null,"Cronograma","Detonante","Alcance","Terceros","Duración","Sobrecosto"]
[null,"Peso sobre 100 puntos",12.5,12.5,12.5,12.5,25,25]
[null,"Riesgo contractual 1",null,null,null,null,null,null,{"$f":"((C34*$C$7)+(D34*$D$7)+(E34*$E$7)+(F34*$F$7)+(G34*$G$7)+(H34*$H$7))/SUM($C$7:$H$7)","v":0},{"$f":"_xlfn.IFS(AND(1<=I34,I34<=1.75),\"ALTO\",AND(1.75<I34,I34<=2.5),\"MEDIO-ALTO\",AND(2.5<I34,I34<=3.25),\"MEDIO-BAJO\",AND(3.25<I34,I34<=4),\"BAJO\")","v":{"$error":"#N/A"}}]
[]
[null,"GOBERNANZA"]
[]
[null,"Categoría Grupos de interés"]
[null,"Riesgo","Impactos en ejecución",null,null,null,"Impactos financieros",null,"Puntaje de impacto de riesgo","Clasificación","Detona"]
[null,null,"Cronograma","Detonante","Alcance","Terceros","Duración","Sobrecosto"]
[null,"Peso sobre 100 puntos",12.5,12.5,12.5,12.5,25,25]
[null,"Riesgo contractual 1",null,null,null,null,null,null,{"$f":"((C42*$C$7)+(D42*$D$7)+(E42*$E$7)+(F42*$F$7)+(G42*$G$7)+(H42*$H$7))/SUM($C$7:$H$7)","v":0},{"$f":"_xlfn.IFS(AND(1<=I42,I42<=1.75),\"ALTO\",AND(1.75<I42,I42<=2.5),\"MEDIO-ALTO\",AND(2.5<I42,I42<=3.25),\"MEDIO-BAJO\",AND(3.25<I42,I42<=4),\"BAJO\")","v":{"$error":"#N/A"}}]
[]
[null,"Categoría Identificación de riesgos e impactos"]
[null,"Riesgo","Impactos en ejecución",null,null,null,"Impactos financieros",null,"Puntaje de impacto de riesgo","Clasificación","Detona"]
[null,null,"Cronograma","Detonante","Alcance","Terceros","Duración","Sobrecosto"]
[null,"Peso sobre 100 puntos",12.5,12.5,12.5,12.5,25,25]
[null,"Riesgo contractual 1",null,null,null,null,null,null,{"$f":"((C48*$C$7)+(D48*$D$7)+(E48*$E$7)+(F48*$F$7)+(G48*$G$7)+(H48*$H$7))/SUM($C$7:$H$7)","v":0},{"$f":"_xlfn.IFS(AND(1<=I48,I48<=1.75),\"ALTO\",AND(1.75<I48,I48<=2.5),\"MEDIO-ALTO\",AND(2.5<I48,I48<=3.25),\"MEDIO-BAJO\",AND(3.25<I48,I48<=4),\"BAJO\")","v":{"$error":"#N/A"}}]
[]
[null,"RESILIENCIA"]
[]
[null,"Categoría Gestión de riesgo de desastre y cambio climático"]
[null,"Riesgo","Impactos en ejecución",null,null,null,"Impactos financieros",null,"Puntaje de impacto de riesgo","Clasificación","Detona"]
[null,null,"Cronograma","Detonante","Alcance","Terceros","Duración","Sobrecosto"]
[null,"Peso sobre 100 puntos",12.5,12.5,12.5,12.5,25,25]
[null,"Riesgo contractual 1",null,null,null,null,null,null,{"$f":"((C56*$C$7)+(D56*$D$7)+(E56*$E$7)+(F56*$F$7)+(G56*$G$7)+(H56*$H$7))/SUM($C$7:$H$7)","v":0},{"$f":"_xlfn.IFS(AND(1<=I56,I56<=1.75),\"ALTO\",AND(1.75<I56,I56<=2.5),\"MEDIO-ALTO\",AND(2.5<I56,I56<=3.25),\"MEDIO-BAJO\",AND(3.25<I56,I56<=4),\"BAJO\")","v":{"$error":"#N/A"}}]

{"sheet":"Identificación Zona Valorable","index":16,"n_rows":3,"n_cols":8,"rows_kept":3,"cut":false,"hidden":false,"merged":[]}
[]
[null,"Riesgo contractual","Categoría","Probabilidad (Paso 4)","Impacto (Paso 5)","Caso","¿Entra al Área valorable?","Observación"]
[null,"Riesgo contractual 1","Categoría 1"]

{"sheet":"Zona Valorable BackUp","index":17,"n_rows":3,"n_cols":8,"rows_kept":3,"cut":false,"hidden":true,"merged":[]}
[]
[null,"Riesgo contractual","Categoría","Probabilidad (Paso 4)","Impacto (Paso 5)","Caso","¿Entra al Área valorable?","Observación"]
[null,"Riesgo contractual 1","Categoría 1"]